Cogmind - Beta 16.1 @@@ ROGUE MODE // 2026.04.21 @ 18:36:05 Player: Ultra Sane Result: Destroyed by H-61 Shepherd with Heavy Assault Cannon Performance ------------- Evolutions (2) 1000 Regions Visited (4) 800 Robots Destroyed (10) 50 Value Destroyed (71) 71 Prototype IDs (1) 20 Alien Tech Used (0) 0 Bonus (0) 0 TOTAL SCORE: 1941 Bonus ------- None Cogmind --------- Core Integrity 0/550 Matter 264/300 Energy 25/100 System Corruption 2% Temperature Cool (0) Movement Core (50) Location -8/Materials Parts ------- > --- POWER (2) -------- (None) > --- PROPULSION (3) --- (None) > --- UTILITY (4) ------ Advanced Weight Redist. System Seismic Detector > --- WEAPON (2) ------- Mining Laser > --- INVENTORY (5) ---- (None) Peak State ------------ > --- POWER ------------ Deuterium Engine > --- PROPULSION ------- Improved VTOL Module Improved VTOL Module > --- UTILITY ---------- Advanced Weight Redist. System Signal Interpreter Improved Terrain Scanner Terrain Scan Processor > --- WEAPON ----------- Particle Cannon > --- INVENTORY -------- Advanced Weight Redist. System Seismic Detector Mining Laser [Rating: 22] Favorites ----------- Power Ion Engine Engine Ion Engine Propulsion Aluminum Leg Leg Aluminum Leg Flight Unit Flight Unit Utility Improved Terrain Scanner Device Improved Terrain Scanner Processor Signal Interpreter Weapon Assault Rifle Energy Gun Medium Laser Energy Cannon Particle Cannon Ballistic Gun Assault Rifle Special Weapon Mining Laser Build | -11 -10 -9 -9 -8 ------- Run | Yrd Mat Mat Min Mat Slots Evolved 4 | . . 2 . 2 Power 1 | . . 1 . . Propulsion 1 | . . . . 1 Utility 2 | . . 1 . 1 Weapon . | . . . . . Parts Attached 23 | 6 5 3 . 9 Power 4 | 1 1 1 . 1 Engine 4 | 1 1 1 . 1 Core . | . . . . . Reactor . | . . . . . Propulsion 8 | 2 2 1 . 3 Treads . | . . . . . Leg 2 | 2 . . . . Wheel . | . . . . . Hover . | . . . . . Flight 6 | . 2 1 . 3 Utility 7 | 1 2 1 . 3 Device 5 | 1 1 . . 3 Storage . | . . . . . Processor 2 | . 1 1 . . Hackware . | . . . . . Protection . | . . . . . Artifact . | . . . . . Weapon 4 | 2 . . . 2 Energy Gun 1 | 1 . . . . Energy Cannon 1 | . . . . 1 Ballistic Gun 1 | 1 . . . . Ballistic Cannon . | . . . . . Launcher . | . . . . . Special Weapon 1 | . . . . 1 Impact Weapon . | . . . . . Slashing Weapon . | . . . . . Piercing Weapon . | . . . . . Special Melee Weapon . | . . . . . Unidentified Prototypes 1 | . . . . 1 Parts Lost 16 | . . 1 . 15 Power 3 | . . 1 . 2 Propulsion 6 | . . . . 6 Utility 4 | . . . . 4 Weapon 3 | . . . . 3 Highest Loss Streak 9 | . . 1 . 9 To Critical Strikes . | . . . . . Average Backups 3 | 1 3 4 4 3 Power . | . 1 . . . Propulsion 1 | . 1 1 1 . Utility . | . . . 2 1 Weapon . | . 1 1 1 . Tool/Special . | . . . . . Unused Backups 1 | . . 1 . . Power . | . . . . . Propulsion 1 | . . 1 . . Utility . | . . . . . Weapon . | . . . . . Tool/Special . | . . . . . Average Slot Usage (%) 81 | . 85 86 88 66 Engine 11 | . 14 11 11 6 Leg 12 | . 23 . . . Flight 11 | . 4 22 22 18 Device 13 | . 14 11 11 16 Processor 9 | . . 20 22 16 Energy Gun 10 | . 14 11 11 2 Ballistic Gun 11 | . 14 11 11 3 Peak Build Rating 22 | 8 9 11 11 22 Average Rating 9 | 5 8 10 11 15 On Entrance 7 | . 8 9 11 11 Avg Prop Armor Cover (%) . | . . . . . Naked Turns 2 | . . . . 2 Heaviest Build 14 | 10 10 8 8 14 Greatest Support 21 | 20 20 8 8 21 Greatest Overweight (x) 2 | . . . . 2 Average Overweight (x) . | . . . . . Largest Inventory Capacity 5 | 5 5 5 5 5 Average Capacity 5 | 5 5 5 5 5 Most Carried 5 | 4 5 5 5 5 Average Carried 3 | 2 3 4 4 3 Final Capacity 5 | 5 5 5 5 5 Final Carried 5 | 3 4 4 5 . Class Distribution -------------------- 60% | Mutant 33% | Scavenger-Mutant 6% | Sprinter Dominant Class ---------------- Mutant | -10/Materials Scavenger-Mutant | -9/Materials Scavenger-Mutant | -9/Mines Sprinter | -8/Materials Resources | -11 -10 -9 -9 -8 ----------- Run | Yrd Mat Mat Min Mat Matter Collected 407 | 289 49 . 69 . Remotely . | . . . . . Salvage Created 274 | 129 49 96 . . Parts 21 | 13 6 2 . . Haulers Intercepted . | . . . . . Recyclers Shooed 2 | . . 2 . . Parts Field Recycled . | . . . . . Retrieved Matter . | . . . . . Parts Self-Destructed . | . . . . . Prevented . | . . . . . Parts Restored . | . . . . . Kills | -11 -10 -9 -9 -8 ------- Run | Yrd Mat Mat Min Mat Combat Hostiles Destroyed 3 | . 3 . . . Guns 3 | . 3 . . . Classes Destroyed 4 | 3 1 . . . Worker 1 | 1 . . . . Tunneler 4 | 4 . . . . Recycler 2 | 1 . 1 . . Swarmer 3 | . 3 . . . Best Kill Streak 3 | 3 3 1 . . Combat Bots Only 3 | . 3 . . . Max Kills in Single Turn 2 | 1 2 1 . . Gunslinging 1 | . 1 . . . Exploded . | . . . . . Melee . | . . . . . Uniques/NPCs Destroyed . | . . . . . Combat | -11 -10 -9 -9 -8 -------- Run | Yrd Mat Mat Min Mat Hostile Shots Fired 147 | . 27 14 5 101 Missed 67 | . 11 7 4 45 Hits 80 | . 16 7 1 56 Projectile 80 | . 16 7 1 56 Critical Strikes 5 | . . . . 5 Damage Taken 1325 | . 141 84 18 1082 Core 616 | . 44 11 . 561 Absorbed by Shields . | . . . . . Core Remaining (%) 93 | 100 82 . 97 . Volleys Fired 30 | 11 5 6 . 8 Largest 2 | 2 2 2 . 2 Hottest 70 | 70 70 70 . 70 Shots Fired 56 | 22 10 12 . 12 Gun 53 | 22 10 12 . 9 Cannon 3 | . . . . 3 Launcher . | . . . . . Special . | . . . . . Kinetic 27 | 11 5 6 . 5 Thermal 29 | 11 5 6 . 7 Explosive . | . . . . . Electromagnetic . | . . . . . Robot Hit Streak 12 | 12 2 4 . 6 Robot Miss Streak 4 | 2 4 3 . 1 Penetration Max . | . . . . . Secondary Targets 1 | . 1 . . . Max Gunslinging Chain 1 | . 1 . . . Shots Hit Robots 33 | 15 4 6 . 8 Core Hits 14 | 6 3 3 . 2 Critical Kills . | . . . . . Critical Parts Destroyed . | . . . . . Critical Strikes . | . . . . . Melee Attacks . | . . . . . Impact . | . . . . . Slashing . | . . . . . Piercing . | . . . . . Sneak Attacks . | . . . . . Combat Hostiles . | . . . . . Follow-up Attacks . | . . . . . Damage Inflicted 439 | 193 47 79 . 120 Guns 386 | 184 47 79 . 76 Cannons 41 | . . . . 41 Explosions . | . . . . . Melee . | . . . . . Ramming 12 | 9 . . . 3 Kinetic 200 | 86 23 28 . 63 Thermal 227 | 98 24 51 . 54 Explosive . | . . . . . Electromagnetic . | . . . . . Impact . | . . . . . Slashing . | . . . . . Piercing . | . . . . . Highest Corruption 2 | . . . . 2 Average Corruption 2 | . . . . 2 Corruption Purged . | . . . . . Corruption Blocked . | . . . . . Effects 1 | . . . . 1 Energy Discharges 1 | . . . . 1 Overload Shots . | . . . . . Overflow Damage . | . . . . . Projectiles . | . . . . . Explosions . | . . . . . Melee . | . . . . . Knockbacks . | . . . . . Impact . | . . . . . Kinetic . | . . . . . Secondary . | . . . . . Self-Inflicted Damage 1 | . . . . 1 Shots . | . . . . . Rammed 1 | . . . . 1 Targets Rammed 2 | 1 . . . 1 Kicked 1 | 1 . . . . Crushed . | . . . . . Highest Temperature 66 | 45 36 16 . 66 Average Temperature 16 | 19 19 8 . 16 Received Heat Transfer 102 | . 24 33 . 45 Siege Activations . | . . . . . Martial Activations . | . . . . . Shielding Activations . | . . . . . Robots Disrupted . | . . . . . Combat Hostiles . | . . . . . Robots Corrupted . | . . . . . Combat Hostiles . | . . . . . Parts Fried . | . . . . . Impact Corruptions . | . . . . . Robots Melted . | . . . . . Combat Hostiles . | . . . . . Parts Melted 1 | 1 . . . . Heat Transferred 629 | 296 74 148 . 111 Parts Sabotaged . | . . . . . Parts Stolen . | . . . . . Parts Stripped . | . . . . . Power Chain Reactions . | . . . . . Alert | -11 -10 -9 -9 -8 ------- Run | Yrd Mat Mat Min Mat Maximum Alert Level . | . . . . . Low Security (%) 100 | 100 100 100 100 100 Level 1 . | . . . . . Level 2 . | . . . . . Level 3 . | . . . . . Level 4 . | . . . . . Level 5 . | . . . . . High Security . | . . . . . Max Security . | . . . . . Peak Influence 133 | 15 70 45 43 133 Initial 25 | . . 25 13 12 Average 18 | 1 12 20 28 50 Influence Increases 481 | 30 100 80 30 241 Destroy 0b10 Robot/C 60 | . 60 . . . Destroy 0b10 Robot/NC 35 | 30 . 5 . . Destroy Leader 10 | . 10 . . . Successful Hack 1 | . . . . 1 Partial Spotted 75 | . . 15 30 30 Lose Combat Pursuer 300 | . 30 60 . 210 Influence Decreases 448 | 30 40 105 32 241 Entered New Map 78 | . . 35 22 21 Time Decay 210 | 30 40 60 10 70 Lost Part 160 | . . 10 . 150 Squads Dispatched 6 | . 1 2 . 3 Investigation . | . . . . . Extermination . | . . . . . Reinforcement 6 | . 1 2 . 3 Assault . | . . . . . Garrison . | . . . . . Intercept . | . . . . . Searches Triggered . | . . . . . Construction Impeded . | . . . . . Haulers Reinforced . | . . . . . Active Scanning Responses . | . . . . . Cargo Convoy Interrupts . | . . . . . Stealth | -11 -10 -9 -9 -8 --------- Run | Yrd Mat Mat Min Mat Distress Signals 2 | . 1 1 . . Communications Jammed . | . . . . . Distress Signals . | . . . . . Times Spotted 45 | . 8 10 2 25 Peak Tracking Total 9 | . 5 9 2 8 Tactical Retreats 8 | . 1 2 . 5 Traps | -11 -10 -9 -9 -8 ------- Run | Yrd Mat Mat Min Mat Traps Triggered 1 | . . . . 1 Indirectly . | . . . . . Trap Hack Attempts . | . . . . . Triggered . | . . . . . Disarmed . | . . . . . Reprogrammed . | . . . . . Reused . | . . . . . Traps Extracted . | . . . . . Installed . | . . . . . Triggered . | . . . . . Machines | -11 -10 -9 -9 -8 ---------- Run | Yrd Mat Mat Min Mat Machines Disabled . | . . . . . Max in Single Turn . | . . . . . Machines Repaired . | . . . . . Machines Dismantled . | . . . . . Machines Sabotaged . | . . . . . Overloaded Fab Kills . | . . . . . Hacking | -11 -10 -9 -9 -8 --------- Run | Yrd Mat Mat Min Mat Machines Accessed 2 | . 1 . . 1 Terminals 2 | . 1 . . 1 Fabricators . | . . . . . Repair Stations . | . . . . . Recycling Units . | . . . . . Scanalyzers . | . . . . . Garrison Access . | . . . . . Total Hacks 6 | . 3 . . 3 Successful 3 | . 1 . . 2 Failed 3 | . 2 . . 1 Catastrophic . | . . . . . Database Lockouts . | . . . . . Manual . | . . . . . Terminals 6 | . 3 . . 3 Fabricators . | . . . . . Repair Stations . | . . . . . Recycling Units . | . . . . . Scanalyzers . | . . . . . Garrison Access . | . . . . . Terminal Hacks 3 | . 1 . . 2 Record 1 | . . . . 1 Zone Layout 2 | . 1 . . 1 Fabricator Hacks . | . . . . . Repair Station Hacks . | . . . . . Recycling Unit Hacks . | . . . . . Scanalyzer . | . . . . . Garrison Access Hacks . | . . . . . Unauthorized Hacks . | . . . . . Terminals . | . . . . . Fabricators . | . . . . . Repair Stations . | . . . . . Recycling Units . | . . . . . Scanalyzers . | . . . . . Garrison Access . | . . . . . Data Cores Recovered . | . . . . . Used . | . . . . . Hacking Detections 1 | . 1 . . . Full Trace Events 1 | . 1 . . . Feedback Events . | . . . . . Feedback Blocked . | . . . . . Robot Schematics Acquired . | . . . . . Robots Built . | . . . . . Authchips . | . . . . . Time . | . . . . . Total Robot Build Rating . | . . . . . Part Schematics Acquired . | . . . . . Parts Built . | . . . . . Authchips . | . . . . . Time . | . . . . . Total Part Build Rating . | . . . . . Part Studies Acquired . | . . . . . Parts Repaired . | . . . . . Time . | . . . . . Parts Recycled . | . . . . . Recycled Matter . | . . . . . Retrieved Matter . | . . . . . Retrieved Components . | . . . . . Parts Scanalyzed . | . . . . . Part Schematics Acquired . | . . . . . Parts Damaged . | . . . . . Bothacking | -11 -10 -9 -9 -8 ------------ Run | Yrd Mat Mat Min Mat Used RIF Installer . | . . . . . Robots Hacked . | . . . . . Non-combat . | . . . . . Combat . | . . . . . Robot Hacks Applied . | . . . . . Relay Couplers Released . | . . . . . Fabnet Peak Effective % . | . . . . . Robots Rewired . | . . . . . Allies Hacked . | . . . . . Hacks Repelled . | . . . . . Allies | -11 -10 -9 -9 -8 -------- Run | Yrd Mat Mat Min Mat Total Allies . | . . . . . Largest Group . | . . . . . Highest-Rated Group . | . . . . . Highest-Rated Ally . | . . . . . Total Orders . | . . . . . Ally Attacks . | . . . . . Total Damage . | . . . . . Kills . | . . . . . Allies Corrupted . | . . . . . Allies Melted . | . . . . . Intel | -11 -10 -9 -9 -8 ------- Run | Yrd Mat Mat Min Mat Active Infowar (turns) 755 | 87 374 132 23 139 Terrain 751 | 87 374 132 23 135 Seismic 4 | . . . . 4 Robot Analysis Total . | . . . . . Derelict Logs Recovered 1 | . . . 1 . Drone Launches . | . . . . . Drone Recoveries . | . . . . . Exploration | -11 -10 -9 -9 -8 ------------- Run | Yrd Mat Mat Min Mat Turns Passed 859 | 180 374 132 23 150 Spaces Moved 966 | 135 233 258 59 281 Core 61 | 43 . . . 18 Treads . | . . . . . Legs 166 | 92 74 . . . Wheels . | . . . . . Hover . | . . . . . Flight 739 | . 159 258 59 263 Fastest Speed 32 | 50 37 37 37 32 Average Speed 51 | 97 63 37 37 36 Slowest Speed 150 | 120 120 37 37 150 Overloaded Moves . | . . . . . Propulsion Burnouts . | . . . . . Robots Hopped 6 | . . 2 3 1 Potential Cave-ins . | . . . . . Cave-ins Triggered . | . . . . . Exploration Rate (%) 29 | 5 41 41 19 42 Regions Visited 4 Branch Regions 1 Pre-discovered Areas . | . . . . . Known Exits Taken 3 | . 1 1 1 . Unknown Exits Taken 1 | 1 . . . . Scrap Searched 2 | . . . 2 . Spaces Dug . | . . . . . Terrain Destroyed . | . . . . . Melee . | . . . . . Projectile . | . . . . . AOE . | . . . . . Terrain Rammed . | . . . . . Walls Destroyed . | . . . . . Machines Disabled . | . . . . . Actions | -11 -10 -9 -9 -8 --------- Run | Yrd Mat Mat Min Mat Total 1265 | 161 451 280 56 317 Wait 220 | . 199 8 . 13 Move 950 | 134 232 253 52 279 Hop 6 | . . 2 3 1 Pick Up 24 | 9 5 4 1 5 Fast Attach . | . . . . . Attach 24 | 6 5 3 . 10 Detach 3 | . 2 1 . . Swap 1 | . . 1 . . Drop 5 | . 3 2 . . Fire 30 | 11 5 6 . 8 Melee . | . . . . . Ram 1 | . . . . 1 Kick 1 | 1 . . . . Crush . | . . . . . Escape Stasis . | . . . . . Rewire . | . . . . . Trap . | . . . . . Miscellaneous . | . . . . . Route ------- -11/Scrapyard -10/Materials -9/Materials -9/Mines -8/Materials (discovered 1 exit: [*Fac]) History --------- Turn | Location | Event 7 | -11/Scrapyard | Discovered new exit (range 15) 181 | -11/Scrapyard | Entered Materials 315 | -10/Materials | Build established: Mutant 538 | -10/Materials | Discovered new exit (range 16) 555 | -10/Materials | Identified exit to Materials 555 | -10/Materials | Entered another Materials area 555 | -9/Materials | Evolved 2 slots: Power x1, Utility x1 680 | -9/Materials | Discovered new exit (range 12) 685 | -9/Materials | Identified exit to Mines 687 | -9/Materials | Entered Mines 691 | -9/Mines | Learned Materials security intel 700 | -9/Mines | Discovered new exit (range 14) 710 | -9/Mines | Identified exit to Materials 710 | -9/Mines | Entered Materials 710 | -8/Materials | Evolved 2 slots: Propulsion x1, Utility x1 824 | -8/Materials | Lost 6 parts (1p3n2w) 839 | -8/Materials | Core integrity fell below 50% 854 | -8/Materials | Core integrity fell below 20% 859 | -8/Materials | Discovered new exit (range 15) 860 | -8/Materials | Destroyed by H-61 Shepherd with Heavy Assault Cannon Last Messages --------------- 00839_ Acquired Cesium-ion Thruster. 00845_ Imp. Terrain Scanner destroyed. 00845_ Particle Cannon destroyed. 00845_ Imp. VTOL Module destroyed. 00845_ Critical hit (Blast). 00845_ Knocked back. 00846_ K-01 Serf collects debris. 00847_ Cesium-ion Thruster destroyed. 00847_ Adv. Weight Redist. System destroyed. 00847_ Imp. VTOL Module destroyed. 00847_ Signal Interpreter destroyed. 00847_ Critical hit (Blast). 00847_ Knocked back. 00849_ Deuterium Engine destroyed. 00850_ K-01 Serf collects debris. 00853_ Terrain Scan Processor destroyed. 00853_ Critical hit (Blast). 00854_ K-01 Serf collects debris. 00859_ S-10 Pest destroyed. 00859_ EXIT=FOUND Map ----- +----------------------------------------------------+ | | | | | | | | | | | | | | | | | | | | | | | ?????????????????????????????????????##?#????????? | | ?????????????????????????????#?????#??#????#??#??? | | ???????????????????????????????????????#?######### | | ??????????????????????????????????????????# | | ???????????????????????????????????????#??#/ ] | | ??????????????????????????????????????????# % = | | ???????????????????????????????????????#### | | ???????????????????????????????????????#""" | | ????????????????????????????????????#??#"R | | ???????????????????????????????????????#""" | | ???????????????????????????????????????#### | | ??????????????????????????????????????????# | | ?????????????????????????????????????#???#####"#"# | | ??????????????#######+######################## | | ??????????# @ % s %! | | ??????????# < = s % H | | ??????????# % s[% % % / | | ???????????#################+######+########## | | ???????????????????????# #??????????????## | | ???????????????????????# #??????????????## | | ???????????????????????# #??????"????????# | | ???????????????????????# !! #?????????#?????# | | ???????????????????????# !! #???????????????# | | ???????????????????????# !! #??????????????? | | ???????????????????????########??????????????## | | ??????????????????????????????????????????????#### | | ?????????????????????????????????????????????????? | | ?????????????????????????????????????????????????? | | ?????????????????????????????????????????????????? | | ?????????????????????????????????????????????????? | | ?????????????????????????????????????????????????? | | ?????????????????????????????????????????????????? | | ?????????????????????????????????????????????????? | | ?????????????????????????????????????????????????? | | ?????????????????????????????????????????????????? | | ?????????????????????????????????????????????????? | | ?????????????????????????????????????????????????? | | ?????????????????????????????? ??????? ??????????? | | ??????????????????????????????? ???"?????????????? | +----------------------------------------------------+ Best States ------------- Heat Dissipation 31 Energy Generation 14 Energy Capacity 275 Matter Stores 300 Matter Capacity 300 Sight Range 16 Terrain Scan Range 16 Terrain Scan Density 85 Additional Mass Support 9 Evasion (%) 63 Item Schematics ----------------- None Robot Schematics ------------------ None Fabricated ------------ Nothing Repaired ---------- Nothing Studied --------- None Alien Tech Used ----------------- None Achievements -------------- DATA ERROR: Steam Global Achievement% For Emergencies Only Heavy Suspicion Organ Harvest There's More Where That Came From Challenges ------------ None Game ------ Seed TitaniumDecoyPit Manual? 0 Play Time 00:25:08 Cumulative 13.8 hours Start 2026.04.21 @ 15:22:06 End 2026.04.21 @ 18:36:05 Sessions 1 Manual Loads 0 Difficulty Rogue Special Mode None Game No. 25 Rogue 25 Adventurer 0 Explorer 0 Win Type - Total 0 Types 0/0/0/0/0/0/0/0/0/0 Lore% 8 Gallery% 12 Achievement% 8 Wizard Run 0 Options --------- Layout 1 ASCII 0 Keyboard 1 Movement Numpad Keybinds 0 Fullscreen 2 Font 24/Smallcaps Map View 50x35 Zoom Use 0% Tactical HUD 1 Map Filters NONE Filters NONE Steam 1 RUN: db64790c-332e-4d54-9b11-ca7a79ca6309